[Event "LJ Slovak Open 2022"]
[Site "Liptovsky Jan"]
[Date "2022.06.25"]
[Round "5.32"]
[White "Janouskova, Adela"]
[Black "Harvan, Tomas"]
[Result "0-1"]
[ECO "B12"]
[WhiteElo "1498"]
[BlackElo "1853"]
[Annotator "NA RC"]
[PlyCount "98"]
[EventDate "2022.06.23"]
[EventType "swiss"]
[EventCountry "SVK"]
[SourceTitle "playchess.com"]
[Source "ChessBase"]
[SourceQuality "1"]
[TimeControl "3600+30"]

1. e4 {[%emt 0:00:04]} c6 {[%emt 0:00:06]} 2. d4 {[%emt 0:00:36]} d5 {[%emt 0:00:09]} 3. e5 {[%emt 0:01:06]} c5 {[%emt 0:00:14]} 4. c3 {[%emt 0:01:37]} Nc6 {[%emt 0:00:24]} 5. Nf3 {[%emt 0:00:36]} Bg4 {[%emt 0:00:14]} 6. Be3 {[%emt 0:02:56]} cxd4 {[%emt 0:01:08]} 7. cxd4 {[%emt 0:01:29]} e6 {[%emt 0:00:09]} 8. Nc3 {[%emt 0:00:44]} Nge7 {[%emt 0:00:38]} 9. h3 {[%emt 0:00:52]} Bxf3 {[%emt 0:01:25]} 10. Qxf3 {[%emt 0:00:46]} Nf5 {[%emt 0:01:23]} 11. O-O-O {[%emt 0:05:50]} Be7 {[%emt 0:01:25]} 12. g4 {[%emt 0:01:59]} Nxe3 {[%emt 0:01:31]} 13. fxe3 {[%emt 0:00:16]} Qa5 {[%emt 0:06:00]} 14. Bd3 {[%emt 0:03:05]} O-O {[%emt 0:03:40]} 15. g5 {[%emt 0:02:50]} g6 {[%emt 0:10:36]} 16. h4 {[%emt 0:02:55]} Nb4 {[%emt 0:01:26]} 17. Bb1 {[%emt 0:02:21]} Rac8 {[%emt 0:00:38]} 18. Kd2 {[%emt 0:01:15]} Qb6 {[%emt 0:17:43]} 19. Kc1 {[%emt 0:06:53]} Nxa2+ {[%emt 0:16:02]} 20. Bxa2 {[%emt 0:00:50]} Rxc3+ {[%emt 0:00:29]} 21. bxc3 {[%emt 0:03:08]} Ba3+ {[%emt 0:00:38]} 22. Kd2 {[%emt 0:01:19]} Qb2+ {[%emt 0:00:07]} 23. Ke1 {[%emt 0:01:04]} Qxa2 {[%emt 0:00:54]} 24. h5 {[%emt 0:14:19]} Be7 {[%emt 0:04:05]} 25. Qh3 {[%emt 0:05:20]} Bxg5 {[%emt 0:01:08]} 26. hxg6 {[%emt 0:00:38]} h6 {[%emt 0:00:06]} 27. gxf7+ {[%emt 0:04:26]} Rxf7 {[%emt 0:00:08]} 28. Rf1 {[%emt 0:03:41]} Qc2 {[%emt 0:01:09]} 29. Rxf7 {[%emt 0:00:56]} Qxc3+ {[%emt 0:00:28]} 30. Ke2 {[%emt 0:00:47]} Kxf7 {[%emt 0:00:03]} 31. Qf3+ {[%emt 0:00:34]} Kg7 {[%emt 0:01:19]} 32. Rd3 {[%emt 0:00:26]} Qc2+ {[%emt 0:00:14]} 33. Rd2 {[%emt 0:00:08]} Qc4+ {[%emt 0:00:17]} 34. Rd3 {[%emt 0:01:00]} a5 {[%emt 0:00:22]} 35. Kd2 {[%emt 0:00:33]} a4 {[%emt 0:01:07]} 36. Qd1 {[%emt 0:00:33]} b5 {[%emt 0:00:29]} 37. Qc2 {[%emt 0:00:25]} h5 {[%emt 0:00:34]} 38. Qxc4 {[%emt 0:00:37]} dxc4 {[%emt 0:00:15]} 39. Rc3 {[%emt 0:00:14]} h4 {[%emt 0:00:15]} 40. Rc1 {[%emt 0:00:43]} a3 {[%emt 0:00:25]} 41. Kc2 {[%emt 0:00:34]} Bxe3 {[%emt 0:00:09]} 42. Rd1 {[%emt 0:00:08]} b4 {[%emt 0:00:21]} 43. d5 {[%emt 0:00:43]} exd5 {[%emt 0:00:08]} 44. Rxd5 {[%emt 0:00:26]} b3+ {[%emt 0:00:38]} 45. Kc3 {[%emt 0:00:45]} b2 {[%emt 0:00:37]} 46. Rd1 {[%emt 0:00:28]} Bc1 {[%emt 0:00:44]} 47. Kc2 {[%emt 0:00:33]} a2 {[%emt 0:00:23]} 48. Rg1+ {[%emt 0:00:29]} Kf7 {[%emt 0:00:13]} 49. Rf1+ {[%emt 0:00:31]} Ke7 {[%emt 0:00:10]} 0-1

[Event "LJ Slovak Open 2022"]
[Site "Liptovsky Jan"]
[Date "2022.06.25"]
[Round "5.33"]
[White "Koska, Jiri"]
[Black "Szaszak, Lukas"]
[Result "1-0"]
[ECO "A26"]
[WhiteElo "1759"]
[BlackElo "1454"]
[Annotator "NA RC"]
[PlyCount "73"]
[EventDate "2022.06.23"]
[EventType "swiss"]
[EventCountry "SVK"]
[SourceTitle "playchess.com"]
[Source "ChessBase"]
[SourceQuality "1"]
[TimeControl "3600+30"]

1. Nf3 {[%emt 0:00:03]} Nc6 {[%emt 0:00:25]} 2. g3 {[%emt 0:00:07]} Nf6 {[%emt 0:00:17]} 3. Bg2 {[%emt 0:00:07]} g6 {[%emt 0:00:40]} 4. O-O {[%emt 0:00:09]} Bg7 {[%emt 0:00:06]} 5. c4 {[%emt 0:01:05]} d6 {[%emt 0:00:38]} 6. Nc3 {[%emt 0:00:44]} e5 {[%emt 0:00:30]} 7. d3 {[%emt 0:00:51]} O-O {[%emt 0:01:02]} 8. a3 {[%emt 0:02:29]} a6 {[%emt 0:00:19]} 9. Qc2 {[%emt 0:01:13]} Be6 {[%emt 0:01:13]} 10. b4 {[%emt 0:07:45]} Ne7 {[%emt 0:01:32]} 11. Bg5 {[%emt 0:04:25]} h6 {[%emt 0:01:57]} 12. Bxf6 {[%emt 0:00:09]} Bxf6 {[%emt 0:00:11]} 13. Nd2 {[%emt 0:00:23]} Rb8 {[%emt 0:00:33]} 14. a4 {[%emt 0:00:40]} b6 {[%emt 0:00:42]} 15. Rfb1 {[%emt 0:09:16]} c6 {[%emt 0:01:46]} 16. c5 {[%emt 0:18:55]} d5 {[%emt 0:02:18]} 17. e3 {[%emt 0:01:10]} Qd7 {[%emt 0:03:59]} 18. Ne2 {[%emt 0:02:25]} Bg7 {[%emt 0:01:26]} 19. Rb2 {[%emt 0:00:34]} f5 {[%emt 0:01:47]} 20. d4 {[%emt 0:03:06]} e4 {[%emt 0:00:30]} 21. Nb3 {[%emt 0:01:21]} Bf6 {[%emt 0:02:30]} 22. cxb6 {[%emt 0:00:15]} Rxb6 {[%emt 0:00:57]} 23. Nc5 {[%emt 0:00:10]} Qc8 {[%emt 0:00:23]} 24. a5 {[%emt 0:03:12]} Rb8 {[%emt 0:00:12]} 25. Nc3 {[%emt 0:00:08]} Bf7 {[%emt 0:12:47]} 26. N3a4 {[%emt 0:01:28]} g5 {[%emt 0:01:55]} 27. Nb6 {[%emt 0:00:09]} Qd8 {[%emt 0:00:44]} 28. Nbd7 {[%emt 0:00:56]} Bg7 {[%emt 0:01:11]} 29. Nxb8 {[%emt 0:00:08]} Qxb8 {[%emt 0:00:13]} 30. Nd7 {[%emt 0:00:09]} Qc8 {[%emt 0:00:31]} 31. Nxf8 {[%emt 0:00:06]} Bxf8 {[%emt 0:00:05]} 32. Bf1 {[%emt 0:00:24]} Ng6 {[%emt 0:00:22]} 33. Qe2 {[%emt 0:00:14]} f4 {[%emt 0:00:43]} 34. Qxa6 {[%emt 0:00:43]} Qd7 {[%emt 0:00:19]} 35. Rc1 {[%emt 0:01:46]} Be8 {[%emt 0:00:46]} 36. Qb6 {[%emt 0:00:18]} f3 {[%emt 0:00:41]} 37. a6 {[%emt 0:00:05]} 1-0

[Event "LJ Slovak Open 2022"]
[Site "Liptovsky Jan"]
[Date "2022.06.25"]
[Round "5.34"]
[White "Mrkvik, Jan"]
[Black "Pisarcik, Richard"]
[Result "1-0"]
[ECO "D02"]
[WhiteElo "1810"]
[BlackElo "1343"]
[Annotator "NA RC"]
[PlyCount "85"]
[EventDate "2022.06.23"]
[EventType "swiss"]
[EventCountry "SVK"]
[SourceTitle "playchess.com"]
[Source "ChessBase"]
[SourceQuality "1"]
[TimeControl "3600+30"]

1. d4 {[%emt 0:00:03]} Nf6 {[%emt 0:00:11]} 2. Bf4 {[%emt 0:00:05]} d5 {[%emt 0:00:31]} 3. Nf3 {[%emt 0:00:13]} g6 {[%emt 0:00:24]} 4. e3 {[%emt 0:00:21]} Bg7 {[%emt 0:00:38]} 5. Bd3 {[%emt 0:00:41]} O-O {[%emt 0:00:22]} 6. h4 {[%emt 0:01:12]} b6 {[%emt 0:02:18]} 7. Nbd2 {[%emt 0:00:18]} Bb7 {[%emt 0:00:33]} 8. h5 {[%emt 0:02:48]} Nxh5 {[%emt 0:00:24]} 9. Rxh5 {[%emt 0:00:05]} gxh5 {[%emt 0:00:27]} 10. Ng5 {[%emt 0:00:48]} f5 {[%emt 0:11:42]} 11. Qxh5 {[%emt 0:03:33]} h6 {[%emt 0:02:28]} 12. Ne6 {[%emt 0:00:21]} Qe8 {[%emt 0:01:58]} 13. Qxe8 {[%emt 0:02:30]} Rxe8 {[%emt 0:00:18]} 14. Nxc7 {[%emt 0:00:03]} Rf8 {[%emt 0:01:31]} 15. Nxa8 {[%emt 0:00:06]} Bxa8 {[%emt 0:00:16]} 16. Bxb8 {[%emt 0:00:05]} Rxb8 {[%emt 0:00:07]} 17. Bxf5 {[%emt 0:00:04]} Re8 {[%emt 0:01:28]} 18. c3 {[%emt 0:01:06]} e5 {[%emt 0:00:15]} 19. dxe5 {[%emt 0:01:10]} Bxe5 {[%emt 0:00:30]} 20. O-O-O {[%emt 0:01:57]} Kh8 {[%emt 0:01:11]} 21. Rh1 {[%emt 0:00:45]} Kg7 {[%emt 0:00:43]} 22. Nf3 {[%emt 0:02:31]} Rf8 {[%emt 0:03:29]} 23. Bc2 {[%emt 0:02:07]} Bc7 {[%emt 0:01:20]} 24. Rd1 {[%emt 0:00:23]} Bb8 {[%emt 0:02:36]} 25. Bb3 {[%emt 0:00:51]} d4 {[%emt 0:01:11]} 26. Nxd4 {[%emt 0:01:44]} Rxf2 {[%emt 0:01:07]} 27. Ne6+ {[%emt 0:00:11]} Kg6 {[%emt 0:01:47]} 28. Rd8 {[%emt 0:00:22]} Rf1+ {[%emt 0:02:21]} 29. Kd2 {[%emt 0:02:20]} Rf2+ {[%emt 0:02:46]} 30. Ke1 {[%emt 0:01:07]} Rxb2 {[%emt 0:03:38]} 31. Rxb8 {[%emt 0:00:21]} Bxg2 {[%emt 0:01:21]} 32. Nf4+ {[%emt 0:04:14]} Kf5 {[%emt 0:01:46]} 33. Rf8+ {[%emt 0:00:07]} Ke4 {[%emt 0:01:58]} 34. Bd5+ {[%emt 0:00:41]} Kxe3 {[%emt 0:00:18]} 35. Nxg2+ {[%emt 0:00:06]} Kd3 {[%emt 0:00:40]} 36. Rf3+ {[%emt 0:00:25]} Kc2 {[%emt 0:00:28]} 37. Be4+ {[%emt 0:02:18]} Kc1 {[%emt 0:00:20]} 38. Nf4 {[%emt 0:02:09]} Rb5 {[%emt 0:00:28]} 39. Nd3+ {[%emt 0:01:26]} Kb1 {[%emt 0:00:32]} 40. Rf2 {[%emt 0:02:21]} Ka1 {[%emt 0:00:48]} 41. Rd2 {[%emt 0:07:18]} h5 {[%emt 0:00:35]} 42. a4 {[%emt 0:06:23]} Rg5 {[%emt 0:00:50]} 43. Nb4 {[%emt 0:01:07]} 1-0

[Event "LJ Slovak Open 2022"]
[Site "Liptovsky Jan"]
[Date "2022.06.25"]
[Round "5.35"]
[White "Lacko, Stanislav"]
[Black "Kukan, Michal"]
[Result "0-1"]
[ECO "C30"]
[WhiteElo "1462"]
[BlackElo "1767"]
[Annotator "NA RC"]
[PlyCount "76"]
[EventDate "2022.06.23"]
[EventType "swiss"]
[EventCountry "SVK"]
[SourceTitle "playchess.com"]
[Source "ChessBase"]
[SourceQuality "1"]
[TimeControl "3600+30"]

1. e4 {[%emt 0:00:09]} e5 {[%emt 0:00:20]} 2. Nc3 {[%emt 0:00:16]} Nf6 {[%emt 0:00:29]} 3. f4 {[%emt 0:00:29]} d6 {[%emt 0:00:33]} 4. Nf3 {[%emt 0:01:10]} Nc6 {[%emt 0:00:59]} 5. Bb5 {[%emt 0:02:01]} Bd7 {[%emt 0:00:30]} 6. d3 {[%emt 0:05:40]} Be7 {[%emt 0:00:43]} 7. O-O {[%emt 0:02:37]} O-O {[%emt 0:00:18]} 8. Be3 {[%emt 0:03:36]} exf4 {[%emt 0:00:48]} 9. Bxf4 {[%emt 0:00:37]} a6 {[%emt 0:00:21]} 10. Bxc6 {[%emt 0:04:14]} Bxc6 {[%emt 0:00:25]} 11. Nd4 {[%emt 0:02:31]} Bd7 {[%emt 0:06:32]} 12. Qf3 {[%emt 0:03:58]} Bg4 {[%emt 0:05:46]} 13. Qg3 {[%emt 0:04:23]} Qd7 {[%emt 0:06:55]} 14. h3 {[%emt 0:04:43]} Be6 {[%emt 0:06:23]} 15. Qf3 {[%emt 0:06:02]} c5 {[%emt 0:05:58]} 16. Nde2 {[%emt 0:01:59]} d5 {[%emt 0:02:05]} 17. e5 {[%emt 0:08:34]} Ne8 {[%emt 0:00:31]} 18. Qg3 {[%emt 0:01:07]} b5 {[%emt 0:00:22]} 19. Bg5 {[%emt 0:01:56]} Bxg5 {[%emt 0:02:50]} 20. Qxg5 {[%emt 0:00:11]} b4 {[%emt 0:00:45]} 21. Nd1 {[%emt 0:03:01]} h6 {[%emt 0:00:30]} 22. Qg3 {[%emt 0:00:30]} f6 {[%emt 0:05:05]} 23. Ne3 {[%emt 0:02:38]} f5 {[%emt 0:05:02]} 24. Nf4 {[%emt 0:00:28]} d4 {[%emt 0:03:48]} 25. Nxe6 {[%emt 0:01:35]} Qxe6 {[%emt 0:00:21]} 26. Nc4 {[%emt 0:00:41]} Ra7 {[%emt 0:01:33]} 27. Rf2 {[%emt 0:00:30]} Nc7 {[%emt 0:01:51]} 28. Raf1 {[%emt 0:01:08]} Nd5 {[%emt 0:00:26]} 29. Qf3 {[%emt 0:02:47]} g6 {[%emt 0:03:21]} 30. Qe2 {[%emt 0:02:05]} Re8 {[%emt 0:02:04]} 31. Nd6 {[%emt 0:01:10]} Ree7 {[%emt 0:00:26]} 32. Nc4 {[%emt 0:00:21]} f4 {[%emt 0:01:02]} 33. Qe4 {[%emt 0:00:26]} Kg7 {[%emt 0:01:08]} 34. b3 {[%emt 0:00:14]} g5 {[%emt 0:02:50]} 35. Qf3 {[%emt 0:00:44]} Ne3 {[%emt 0:00:35]} 36. Re1 {[%emt 0:00:43]} Qg6 {[%emt 0:02:30]} 37. Nxe3 {[%emt 0:00:44]} dxe3 {[%emt 0:00:22]} 38. Qd5 {[%emt 0:00:17]} exf2+ {[%emt 0:00:21]} 0-1

[Event "LJ Slovak Open 2022"]
[Site "Liptovsky Jan"]
[Date "2022.06.25"]
[Round "5.36"]
[White "Ropovik, Samuel"]
[Black "Vastik, Lukas"]
[Result "1/2-1/2"]
[ECO "C47"]
[WhiteElo "1453"]
[BlackElo "1738"]
[Annotator "NA RC"]
[PlyCount "77"]
[EventDate "2022.06.23"]
[EventType "swiss"]
[EventCountry "SVK"]
[SourceTitle "playchess.com"]
[Source "ChessBase"]
[SourceQuality "1"]
[TimeControl "3600+30"]

1. e4 {[%emt 0:00:02]} e5 {[%emt 0:00:04]} 2. Nf3 {[%emt 0:00:09]} Nc6 {[%emt 0:00:04]} 3. Nc3 {[%emt 0:00:24]} Nf6 {[%emt 0:00:38]} 4. d4 {[%emt 0:00:15]} exd4 {[%emt 0:01:27]} 5. Nxd4 {[%emt 0:00:03]} Bb4 {[%emt 0:02:43]} 6. Nxc6 {[%emt 0:00:19]} Bxc3+ {[%emt 0:00:32]} 7. bxc3 {[%emt 0:00:43]} bxc6 {[%emt 0:00:31]} 8. Bd3 {[%emt 0:10:10]} Qe7 {[%emt 0:01:19]} 9. O-O {[%emt 0:02:05]} Qe5 {[%emt 0:03:51]} 10. Bd2 {[%emt 0:06:49]} d6 {[%emt 0:00:37]} 11. f4 {[%emt 0:03:24]} Qc5+ {[%emt 0:00:11]} 12. Kh1 {[%emt 0:00:55]} Ng4 {[%emt 0:00:22]} 13. Qe2 {[%emt 0:03:51]} O-O {[%emt 0:02:03]} 14. h3 {[%emt 0:01:02]} Nf6 {[%emt 0:02:07]} 15. Rae1 {[%emt 0:01:08]} Qh5 {[%emt 0:02:16]} 16. Qf2 {[%emt 0:07:02]} Nd7 {[%emt 0:07:22]} 17. Re3 {[%emt 0:06:30]} Qc5 {[%emt 0:01:49]} 18. Qh4 {[%emt 0:00:53]} Re8 {[%emt 0:06:09]} 19. Rfe1 {[%emt 0:03:22]} Nf8 {[%emt 0:05:03]} 20. e5 {[%emt 0:05:47]} Bd7 {[%emt 0:03:49]} 21. R1e2 {[%emt 0:02:58]} Rab8 {[%emt 0:05:36]} 22. Qe1 {[%emt 0:02:01]} dxe5 {[%emt 0:12:18]} 23. Rxe5 {[%emt 0:01:31]} Rxe5 {[%emt 0:00:17]} 24. Rxe5 {[%emt 0:00:25]} Qd6 {[%emt 0:00:20]} 25. Re4 {[%emt 0:02:27]} c5 {[%emt 0:01:46]} 26. Re5 {[%emt 0:01:25]} Bc6 {[%emt 0:00:53]} 27. Qe3 {[%emt 0:01:25]} Nd7 {[%emt 0:02:44]} 28. Re8+ {[%emt 0:02:41]} Rxe8 {[%emt 0:00:05]} 29. Qxe8+ {[%emt 0:00:10]} Nf8 {[%emt 0:00:08]} 30. Qe2 {[%emt 0:00:40]} Qd7 {[%emt 0:03:43]} 31. Kh2 {[%emt 0:00:50]} Qd6 {[%emt 0:01:17]} 32. Kh1 {[%emt 0:00:13]} Qd7 {[%emt 0:00:58]} 33. Kh2 {[%emt 0:00:07]} Qd5 {[%emt 0:00:49]} 34. Bc4 {[%emt 0:01:15]} Qf5 {[%emt 0:01:06]} 35. Bd3 {[%emt 0:00:35]} Qd5 {[%emt 0:00:41]} 36. Bc4 {[%emt 0:00:06]} Qf5 {[%emt 0:00:34]} 37. Bd3 {[%emt 0:00:01]} Qd5 {[%emt 0:01:18]} 38. Bc4 {[%emt 0:00:05]} Qf5 {[%emt 0:00:32]} 39. Bd3 {[%emt 0:00:08]} 1/2-1/2

[Event "LJ Slovak Open 2022"]
[Site "Liptovsky Jan"]
[Date "2022.06.25"]
[Round "5.37"]
[White "Miciak, Emanuel"]
[Black "Carnecky, Viliam"]
[Result "1-0"]
[ECO "E10"]
[WhiteElo "1804"]
[BlackElo "1380"]
[Annotator "NA RC"]
[PlyCount "117"]
[EventDate "2022.06.23"]
[EventType "swiss"]
[EventCountry "SVK"]
[SourceTitle "playchess.com"]
[Source "ChessBase"]
[SourceQuality "1"]
[TimeControl "3600+30"]

1. d4 {[%emt 0:00:08]} d5 {[%emt 0:00:14]} 2. c4 {[%emt 0:00:04]} e6 {[%emt 0:00:27]} 3. Nf3 {[%emt 0:00:31]} Nc6 {[%emt 0:01:11]} 4. e3 {[%emt 0:00:47]} Nf6 {[%emt 0:00:57]} 5. a3 {[%emt 0:01:11]} Bd7 {[%emt 0:03:04]} 6. Nc3 {[%emt 0:02:30]} a6 {[%emt 0:02:02]} 7. Bd3 {[%emt 0:02:14]} Be7 {[%emt 0:01:00]} 8. O-O {[%emt 0:01:00]} O-O {[%emt 0:00:38]} 9. b3 {[%emt 0:03:01]} Bd6 {[%emt 0:07:40]} 10. Bb2 {[%emt 0:04:02]} Re8 {[%emt 0:02:21]} 11. c5 {[%emt 0:07:25]} Be7 {[%emt 0:00:50]} 12. Qc2 {[%emt 0:01:30]} b6 {[%emt 0:01:32]} 13. b4 {[%emt 0:00:38]} a5 {[%emt 0:02:37]} 14. b5 {[%emt 0:03:09]} Na7 {[%emt 0:00:13]} 15. c6 {[%emt 0:00:54]} Bc8 {[%emt 0:01:12]} 16. Rad1 {[%emt 0:01:32]} Bd6 {[%emt 0:01:54]} 17. Ne5 {[%emt 0:00:54]} Qe7 {[%emt 0:04:01]} 18. Nb1 {[%emt 0:02:34]} Bxe5 {[%emt 0:01:53]} 19. dxe5 {[%emt 0:00:26]} Ne4 {[%emt 0:00:10]} 20. a4 {[%emt 0:04:40]} f6 {[%emt 0:05:55]} 21. Bxe4 {[%emt 0:04:52]} dxe4 {[%emt 0:00:11]} 22. Qxe4 {[%emt 0:00:59]} fxe5 {[%emt 0:00:48]} 23. Bxe5 {[%emt 0:01:22]} Qf7 {[%emt 0:00:48]} 24. Qg4 {[%emt 0:02:00]} h6 {[%emt 0:01:08]} 25. Qg3 {[%emt 0:02:03]} Re7 {[%emt 0:00:57]} 26. Rd8+ {[%emt 0:01:37]} Kh7 {[%emt 0:00:25]} 27. Nd2 {[%emt 0:03:14]} Bb7 {[%emt 0:01:45]} 28. Rxa8 {[%emt 0:02:03]} Bxa8 {[%emt 0:00:11]} 29. Nf3 {[%emt 0:00:26]} Nxc6 {[%emt 0:01:27]} 30. bxc6 {[%emt 0:00:17]} Bxc6 {[%emt 0:00:03]} 31. Rc1 {[%emt 0:02:33]} Bxa4 {[%emt 0:00:40]} 32. Rxc7 {[%emt 0:00:45]} Rd7 {[%emt 0:02:53]} 33. Rxd7 {[%emt 0:02:00]} Qxd7 {[%emt 0:00:12]} 34. Nd4 {[%emt 0:00:41]} Bc6 {[%emt 0:01:29]} 35. h4 {[%emt 0:00:38]} Bd5 {[%emt 0:01:00]} 36. f4 {[%emt 0:02:10]} g6 {[%emt 0:01:24]} 37. h5 {[%emt 0:01:30]} Qf7 {[%emt 0:02:04]} 38. hxg6+ {[%emt 0:01:27]} Qxg6 {[%emt 0:00:10]} 39. Qxg6+ {[%emt 0:00:01]} Kxg6 {[%emt 0:00:11]} 40. Bc7 {[%emt 0:00:02]} a4 {[%emt 0:00:23]} 41. Bxb6 {[%emt 0:00:12]} a3 {[%emt 0:00:32]} 42. Ba5 {[%emt 0:00:30]} a2 {[%emt 0:00:55]} 43. Bc3 {[%emt 0:00:06]} Kh5 {[%emt 0:02:58]} 44. Kf2 {[%emt 0:03:12]} Kg4 {[%emt 0:01:42]} 45. Nc2 {[%emt 0:01:28]} Kf5 {[%emt 0:01:43]} 46. Nb4 {[%emt 0:01:44]} Bc4 {[%emt 0:01:25]} 47. Kf3 {[%emt 0:00:55]} h5 {[%emt 0:02:48]} 48. e4+ {[%emt 0:00:34]} Kg6 {[%emt 0:00:20]} 49. g3 {[%emt 0:00:40]} Bb3 {[%emt 0:01:31]} 50. Ke3 {[%emt 0:00:50]} Bc4 {[%emt 0:01:03]} 51. Kd4 {[%emt 0:00:47]} Bb3 {[%emt 0:00:31]} 52. Nd3 {[%emt 0:00:24]} Bc2 {[%emt 0:02:09]} 53. Nc1 {[%emt 0:00:14]} Bb1 {[%emt 0:00:08]} 54. Nb3 {[%emt 0:00:59]} Bc2 {[%emt 0:01:39]} 55. Nd2 {[%emt 0:00:09]} Kf6 {[%emt 0:06:18]} 56. Bb2 {[%emt 0:01:11]} Ke7 {[%emt 0:01:50]} 57. Kc5 {[%emt 0:00:33]} Bb1 {[%emt 0:01:10]} 58. Nf3 {[%emt 0:00:47]} Kf7 {[%emt 0:01:58]} 59. f5 {[%emt 0:01:10]} 1-0

[Event "LJ Slovak Open 2022"]
[Site "Liptovsky Jan"]
[Date "2022.06.25"]
[Round "5.38"]
[White "Staron, Ladislav"]
[Black "Livnansky, Michal"]
[Result "1/2-1/2"]
[ECO "E87"]
[WhiteElo "1695"]
[BlackElo "1279"]
[Annotator "NA RC"]
[PlyCount "118"]
[EventDate "2022.06.23"]
[EventType "swiss"]
[EventCountry "SVK"]
[SourceTitle "playchess.com"]
[Source "ChessBase"]
[SourceQuality "1"]
[TimeControl "3600+30"]

1. d4 {[%emt 0:00:08]} Nf6 {[%emt 0:00:11]} 2. c4 {[%emt 0:00:09]} g6 {[%emt 0:00:18]} 3. Nc3 {[%emt 0:00:08]} Bg7 {[%emt 0:00:42]} 4. e4 {[%emt 0:00:10]} d6 {[%emt 0:00:10]} 5. f3 {[%emt 0:00:04]} O-O {[%emt 0:00:11]} 6. Be3 {[%emt 0:00:02]} Nbd7 {[%emt 0:02:01]} 7. Qd2 {[%emt 0:00:06]} e5 {[%emt 0:00:30]} 8. d5 {[%emt 0:00:11]} Ne8 {[%emt 0:03:05]} 9. Bd3 {[%emt 0:00:40]} f5 {[%emt 0:01:42]} 10. Bg5 {[%emt 0:03:19]} Ndf6 {[%emt 0:02:14]} 11. Bh6 {[%emt 0:05:31]} Nxe4 {[%emt 0:02:16]} 12. fxe4 {[%emt 0:01:56]} Qh4+ {[%emt 0:00:10]} 13. g3 {[%emt 0:01:21]} Qxh6 {[%emt 0:00:11]} 14. Qxh6 {[%emt 0:02:01]} Bxh6 {[%emt 0:00:08]} 15. Ke2 {[%emt 0:00:18]} Nf6 {[%emt 0:02:11]} 16. Rf1 {[%emt 0:02:39]} fxe4 {[%emt 0:01:52]} 17. Nxe4 {[%emt 0:01:08]} Bg4+ {[%emt 0:00:52]} 18. Nf3 {[%emt 0:00:33]} Bh3 {[%emt 0:02:30]} 19. Re1 {[%emt 0:02:05]} Bg2 {[%emt 0:02:03]} 20. Rhg1 {[%emt 0:00:21]} Bxf3+ {[%emt 0:00:14]} 21. Kxf3 {[%emt 0:00:21]} Nxd5+ {[%emt 0:00:44]} 22. Ke2 {[%emt 0:00:30]} Nb4 {[%emt 0:03:31]} 23. Bb1 {[%emt 0:00:18]} Nc6 {[%emt 0:00:21]} 24. Rgf1 {[%emt 0:01:33]} Nd4+ {[%emt 0:02:38]} 25. Kd3 {[%emt 0:00:15]} Rxf1 {[%emt 0:04:47]} 26. Rxf1 {[%emt 0:00:09]} Rf8 {[%emt 0:00:08]} 27. Rxf8+ {[%emt 0:00:13]} Kxf8 {[%emt 0:00:19]} 28. c5 {[%emt 0:02:11]} Ke7 {[%emt 0:00:02]} 29. cxd6+ {[%emt 0:00:15]} cxd6 {[%emt 0:00:07]} 30. a4 {[%emt 0:00:52]} Nb3 {[%emt 0:08:56]} 31. Kc4 {[%emt 0:01:19]} Nd2+ {[%emt 0:01:09]} 32. Nxd2 {[%emt 0:01:07]} Bxd2 {[%emt 0:00:02]} 33. Kd5 {[%emt 0:00:24]} Bc1 {[%emt 0:01:32]} 34. b4 {[%emt 0:00:21]} Ba3 {[%emt 0:00:11]} 35. b5 {[%emt 0:00:06]} Bc5 {[%emt 0:03:15]} 36. g4 {[%emt 0:00:32]} a6 {[%emt 0:08:16]} 37. h4 {[%emt 0:02:12]} axb5 {[%emt 0:03:05]} 38. axb5 {[%emt 0:00:12]} Bf2 {[%emt 0:00:38]} 39. h5 {[%emt 0:00:18]} gxh5 {[%emt 0:00:53]} 40. gxh5 {[%emt 0:00:27]} h6 {[%emt 0:00:28]} 41. Bg6 {[%emt 0:00:47]} Bc5 {[%emt 0:02:12]} 42. Bf5 {[%emt 0:00:45]} b6 {[%emt 0:00:55]} 43. Bg6 {[%emt 0:01:43]} Kf6 {[%emt 0:00:38]} 44. Ke4 {[%emt 0:01:34]} Ke6 {[%emt 0:01:47]} 45. Bf5+ {[%emt 0:00:29]} Kf6 {[%emt 0:00:09]} 46. Bg6 {[%emt 0:00:08]} Kg5 {[%emt 0:00:04]} 47. Bf7 {[%emt 0:01:31]} Kg4 {[%emt 0:00:03]} 48. Be8 {[%emt 0:00:33]} Kg3 {[%emt 0:01:20]} 49. Bf7 {[%emt 0:00:51]} Kf2 {[%emt 0:00:36]} 50. Bc4 {[%emt 0:00:47]} Ke1 {[%emt 0:00:41]} 51. Bd5 {[%emt 0:00:51]} Kd2 {[%emt 0:00:54]} 52. Bc6 {[%emt 0:02:11]} Kc3 {[%emt 0:02:11]} 53. Kd5 {[%emt 0:01:07]} Kd3 {[%emt 0:01:35]} 54. Be8 {[%emt 0:02:03]} Ke3 {[%emt 0:05:53]} 55. Bg6 {[%emt 0:00:29]} Bd4 {[%emt 0:00:58]} 56. Be4 {[%emt 0:01:38]} Kf4 {[%emt 0:00:39]} 57. Bg6 {[%emt 0:00:38]} Bc5 {[%emt 0:00:26]} 58. Be4 {[%emt 0:01:05]} Kg5 {[%emt 0:01:49]} 59. Bg6 {[%emt 0:01:01]} Kf4 {[%emt 0:00:46]} 1/2-1/2

[Event "LJ Slovak Open 2022"]
[Site "Liptovsky Jan"]
[Date "2022.06.25"]
[Round "5.39"]
[White "Prochazka Michal"]
[Black "Kulich, Daniel"]
[Result "0-1"]
[ECO "B28"]
[WhiteElo "1110"]
[BlackElo "1648"]
[Annotator "NA RC"]
[PlyCount "62"]
[EventDate "2022.06.23"]
[EventType "swiss"]
[EventCountry "SVK"]
[SourceTitle "playchess.com"]
[Source "ChessBase"]
[SourceQuality "1"]
[TimeControl "3600+30"]

1. e4 {[%emt 0:00:05]} c5 {[%emt 0:00:05]} 2. Nf3 {[%emt 0:00:13]} a6 {[%emt 0:00:05]} 3. d4 {[%emt 0:02:15]} cxd4 {[%emt 0:00:08]} 4. Nxd4 {[%emt 0:00:10]} Nf6 {[%emt 0:00:07]} 5. Nc3 {[%emt 0:01:58]} e5 {[%emt 0:00:15]} 6. Nf3 {[%emt 0:01:16]} Nc6 {[%emt 0:00:41]} 7. Bc4 {[%emt 0:00:43]} Bc5 {[%emt 0:01:50]} 8. O-O {[%emt 0:00:51]} O-O {[%emt 0:00:24]} 9. Bg5 {[%emt 0:03:58]} h6 {[%emt 0:02:02]} 10. Bh4 {[%emt 0:03:07]} d6 {[%emt 0:02:55]} 11. Qc1 {[%emt 0:05:02]} Be6 {[%emt 0:02:40]} 12. Bb3 {[%emt 0:01:54]} Bxb3 {[%emt 0:11:12]} 13. axb3 {[%emt 0:00:36]} Kh7 {[%emt 0:00:50]} 14. Rd1 {[%emt 0:08:20]} Rg8 {[%emt 0:02:00]} 15. Ra4 {[%emt 0:04:13]} b5 {[%emt 0:00:52]} 16. Ra2 {[%emt 0:03:44]} Nb4 {[%emt 0:01:40]} 17. Ra1 {[%emt 0:02:55]} Qc8 {[%emt 0:02:02]} 18. Nd5 {[%emt 0:03:46]} Nbxd5 {[%emt 0:01:50]} 19. exd5 {[%emt 0:00:28]} Qg4 {[%emt 0:03:34]} 20. h3 {[%emt 0:03:07]} Qf5 {[%emt 0:02:12]} 21. c4 {[%emt 0:01:04]} g5 {[%emt 0:01:42]} 22. Bg3 {[%emt 0:02:17]} Ne4 {[%emt 0:00:33]} 23. Kf1 {[%emt 0:02:59]} Nxg3+ {[%emt 0:01:33]} 24. fxg3 {[%emt 0:00:42]} e4 {[%emt 0:00:44]} 25. Qb1 {[%emt 0:02:09]} g4 {[%emt 0:02:03]} 26. hxg4 {[%emt 0:01:50]} Rxg4 {[%emt 0:01:06]} 27. cxb5 {[%emt 0:00:43]} Rxg3 {[%emt 0:00:14]} 28. Rxa6 {[%emt 0:01:37]} Rxf3+ {[%emt 0:00:25]} 29. Ke2 {[%emt 0:01:37]} Rf2+ {[%emt 0:01:16]} 30. Ke1 {[%emt 0:00:19]} Bb4+ {[%emt 0:00:40]} 31. Rd2 {[%emt 0:00:32]} Rxd2 {[%emt 0:00:27]} 0-1